Cogmind - Beta 9.6 @@@ ROGUE MODE // 2020.05.17 @ 12:45:47 Player: slowdive Result: Destroyed by Y-45 Defender with Heavy Assault Rifle Performance ------------- Evolutions (1) 500 Regions Visited (2) 400 Robots Destroyed (8) 40 Value Destroyed (99) 99 Prototype IDs (0) 0 Alien Tech Used (0) 0 Bonus (0) 0 TOTAL SCORE: 1039 Bonus ------- None Cogmind --------- Core Integrity 0/400 Matter 204/300 Energy 27/100 System Corruption 0% Temperature Cool (9) Movement Core (250) Ox4 Location -9/Materials Parts ------- > --- POWER (1) -------- (None) > --- PROPULSION (3) --- (None) > --- UTILITY (3) ------ Small Storage Unit Medium Storage Unit > --- WEAPON (2) ------- EM Shotgun > --- INVENTORY (10) --- Aluminum Leg Compact Wheel Heat Sink Large Battery (300) Weight Redist. System Improved Terrain Scanner Welding Torch Peak State ------------ > --- POWER ------------ Light Ion Engine > --- PROPULSION ------- Wheel Wheel Wheel > --- UTILITY ---------- Small Storage Unit Medium Storage Unit Improved Terrain Scanner > --- WEAPON ----------- EM Shotgun EM Shotgun > --- INVENTORY -------- Aluminum Leg Aluminum Leg Compact Wheel Heat Sink Large Battery Weight Redist. System EM Pulse Gun Medium Laser Welding Torch [Rating: 13] Favorites ----------- Power Light Ion Engine Engine Light Ion Engine Propulsion Aluminum Leg Leg Aluminum Leg Wheel Wheel Utility Medium Storage Unit Device Improved Terrain Scanner Storage Medium Storage Unit Weapon EM Pulse Gun Energy Gun EM Pulse Gun Build | -11 -10 -9 ------- Run | Scr Mat Mat Slots Evolved 2 | . . 2 Power . | . . . Propulsion 1 | . . 1 Utility 1 | . . 1 Weapon . | . . . Parts Attached 23 | 6 5 12 Power 2 | 1 . 1 Engine 2 | 1 . 1 Core . | . . . Reactor . | . . . Propulsion 8 | 2 1 5 Treads . | . . . Leg 5 | 2 1 2 Wheel 3 | . . 3 Hover . | . . . Flight . | . . . Utility 4 | 1 2 1 Device 2 | 1 . 1 Storage 2 | . 2 . Processor . | . . . Hackware . | . . . Protection . | . . . Artifact . | . . . Weapon 9 | 2 2 5 Energy Gun 9 | 2 2 5 Energy Cannon . | . . . Ballistic Gun . | . . . Ballistic Cannon . | . . . Launcher . | . . . Special Weapon . | . . . Impact Weapon . | . . . Slashing Weapon . | . . . Piercing Weapon . | . . . Special Melee Weapon . | . . . Unidentified Prototypes . | . . . Parts Lost 11 | . 1 10 Power 2 | . . 2 Propulsion 4 | . . 4 Utility . | . . . Weapon 5 | . 1 4 Highest Loss Streak 10 | . 1 10 Average Slot Usage (%) 89 | . 95 74 Engine 12 | . 14 8 Leg 19 | . 26 . Wheel 5 | . . 20 Device 6 | . 7 5 Storage 18 | . 17 22 Energy Gun 25 | . 28 19 Naked Turns . | . . . Heaviest Build 20 | 7 19 20 Greatest Support 30 | 20 20 30 Greatest Overweight (x) 4 | . . 4 Average Overweight (x) . | . . . Largest Inventory Capacity 10 | 4 10 10 Average Capacity 7 | 4 8 10 Most Carried 10 | 4 10 10 Average Carried 6 | 2 6 8 Final Capacity 10 | 4 10 10 Final Carried 10 | 4 10 7 Class Distribution -------------------- 100% | Mutant Dominant Class ---------------- Mutant | -10/Materials Mutant | -9/Materials Resources | -11 -10 -9 ----------- Run | Scr Mat Mat Matter Collected 280 | 260 20 . Remotely . | . . . Salvage Created 206 | 69 45 92 Parts 17 | 4 3 10 Haulers Intercepted 1 | . 1 . Recyclers Shooed . | . . . Parts Field Recycled . | . . . Retrieved Matter . | . . . Parts Self-Destructed . | . . . Prevented . | . . . Kills | -11 -10 -9 ------- Run | Scr Mat Mat Combat Hostiles Destroyed 5 | 1 . 4 Guns 5 | 1 . 4 Classes Destroyed 5 | 2 1 2 Tunneler 1 | 1 . . Hauler 1 | . 1 . Watcher 1 | . . 1 Swarmer 4 | . . 4 Grunt 1 | 1 . . Best Kill Streak 3 | 2 1 3 Combat Bots Only 2 | 1 . 2 Max Kills in Single Turn 1 | 1 1 1 Gunslinging . | . . . Exploded . | . . . Melee . | . . . Uniques/NPCs Destroyed . | . . . Combat | -11 -10 -9 -------- Run | Scr Mat Mat Damage Taken 1250 | 72 45 1133 Core 411 | . . 411 Absorbed by Shields . | . . . Core Remaining (%) 100 | 100 100 . Volleys Fired 21 | 6 2 13 Largest 2 | 2 2 2 Hottest 90 | 80 80 90 Shots Fired 41 | 12 4 25 Gun 41 | 12 4 25 Cannon . | . . . Launcher . | . . . Special . | . . . Kinetic . | . . . Thermal 17 | 6 2 9 Explosive . | . . . Electromagnetic 24 | 6 2 16 Robot Hit Streak 5 | 3 4 5 Robot Miss Streak 3 | 2 1 3 Penetration Max . | . . . Secondary Targets 2 | . . 2 Max Gunslinging Chain 1 | . . 1 Shots Hit Robots 24 | 7 2 15 Core Hits 11 | 3 2 6 Critical Hits . | . . . Critical Kills . | . . . Critical Parts Destroyed . | . . . Melee Attacks . | . . . Impact . | . . . Slashing . | . . . Piercing . | . . . Sneak Attacks . | . . . Combat Hostiles . | . . . Follow-up Attacks . | . . . Damage Inflicted 326 | 106 28 192 Guns 320 | 106 28 186 Cannons . | . . . Explosions . | . . . Melee . | . . . Ramming 6 | . . 6 Kinetic . | . . . Thermal 107 | 56 . 51 Explosive . | . . . Electromagnetic 213 | 50 28 135 Impact . | . . . Slashing . | . . . Piercing . | . . . Highest Corruption . | . . . Average Corruption . | . . . Corruption Purged . | . . . Overload Shots . | . . . Overflow Damage . | . . . Projectiles . | . . . Explosions . | . . . Melee . | . . . Knockbacks . | . . . Impact . | . . . Kinetic . | . . . Secondary . | . . . Self-Inflicted Damage 3 | . . 3 Shots . | . . . Rammed 1 | . . 1 Targets Rammed 1 | . . 1 Kicked . | . . . Crushed . | . . . Highest Temperature 158 | 158 18 113 Average Temperature 56 | 85 12 46 Received Heat Transfer 285 | 42 . 243 Siege Activations . | . . . Robots Corrupted . | . . . Combat Hostiles . | . . . Parts Fried . | . . . Impact Corruptions . | . . . Robots Melted . | . . . Combat Hostiles . | . . . Parts Melted 1 | . . 1 Heat Transferred 273 | 125 . 148 Parts Sabotaged . | . . . Parts Stolen . | . . . Parts Stripped . | . . . Power Chain Reactions . | . . . Missiles Intercepted . | . . . Alert | -11 -10 -9 ------- Run | Scr Mat Mat Peak Influence 62 | 25 37 62 Average Influence 21 | 4 27 21 Maximum Alert Level . | . . . Low Security (%) 100 | 100 100 100 Level 1 . | . . . Level 2 . | . . . Level 3 . | . . . Level 4 . | . . . Level 5 . | . . . High Security . | . . . Max Security . | . . . Squads Dispatched 2 | . 1 1 Investigation . | . . . Extermination . | . . . Reinforcement 2 | . 1 1 Assault . | . . . Garrison . | . . . Intercept . | . . . Construction Impeded . | . . . Haulers Reinforced . | . . . Stealth | -11 -10 -9 --------- Run | Scr Mat Mat Distress Signals 2 | . . 2 Communications Jammed . | . . . Distress Signals . | . . . Times Spotted 12 | 1 . 11 Peak Tracking Total 9 | 1 1 9 Tactical Retreats 1 | . . 1 Traps | -11 -10 -9 ------- Run | Scr Mat Mat Traps Triggered 1 | . 1 . Indirectly . | . . . Trap Hack Attempts . | . . . Triggered . | . . . Disarmed . | . . . Reprogrammed . | . . . Reused . | . . . Traps Extracted . | . . . Installed . | . . . Triggered . | . . . Machines | -11 -10 -9 ---------- Run | Scr Mat Mat Machines Disabled . | . . . Max in Single Turn . | . . . Machines Sabotaged . | . . . Garrisons Compromised . | . . . Overloaded Fab Kills . | . . . Fab Network Shutdowns . | . . . Hacking | -11 -10 -9 --------- Run | Scr Mat Mat Machines Accessed 2 | . 2 . Terminals 1 | . 1 . Fabricators . | . . . Repair Stations 1 | . 1 . Recycling Units . | . . . Scanalyzers . | . . . Garrison Access . | . . . Total Hacks 5 | . 5 . Successful 4 | . 4 . Failed 1 | . 1 . Catastrophic . | . . . Database Lockouts . | . . . Manual . | . . . Terminals 1 | . 1 . Fabricators . | . . . Repair Stations 4 | . 4 . Recycling Units . | . . . Scanalyzers . | . . . Garrison Access . | . . . Terminal Hacks 1 | . 1 . Hauler Manifests 1 | . 1 . Fabricator Hacks . | . . . Repair Station Hacks 3 | . 3 . Scan Component 2 | . 2 . Repair 1 | . 1 . Recycling Unit Hacks . | . . . Scanalyzer . | . . . Garrison Access Hacks . | . . . Unauthorized Hacks . | . . . Terminals . | . . . Fabricators . | . . . Repair Stations . | . . . Recycling Units . | . . . Scanalyzers . | . . . Garrison Access . | . . . Data Cores Recovered . | . . . Used . | . . . Hacking Detections 1 | . 1 . Full Trace Events . | . . . Feedback Events . | . . . Feedback Blocked . | . . . Robot Schematics Acquired . | . . . Robots Built . | . . . Matter . | . . . Time . | . . . Total Robot Build Rating . | . . . Part Schematics Acquired . | . . . Parts Built . | . . . Matter . | . . . Time . | . . . Total Part Build Rating . | . . . Parts Repaired 1 | . 1 . Time 36 | . 36 . Parts Recycled . | . . . Recycled Matter . | . . . Retrieved Matter . | . . . Retrieved Components . | . . . Parts Scanalyzed . | . . . Part Schematics Acquired . | . . . Parts Damaged . | . . . Bothacking | -11 -10 -9 ------------ Run | Scr Mat Mat Used RIF Installer . | . . . Robots Hacked . | . . . Non-combat . | . . . Combat . | . . . Robot Hacks Applied . | . . . Relay Couplers Released . | . . . Robots Rewired . | . . . Allies Hacked . | . . . Hacks Repelled . | . . . Allies | -11 -10 -9 -------- Run | Scr Mat Mat Total Allies . | . . . Largest Group . | . . . Highest-Rated Group . | . . . Highest-Rated Ally . | . . . Total Orders . | . . . Ally Attacks . | . . . Total Damage . | . . . Kills . | . . . Allies Corrupted . | . . . Allies Melted . | . . . Intel | -11 -10 -9 ------- Run | Scr Mat Mat Robot Analysis Total . | . . . Derelict Logs Recovered . | . . . Drone Launches . | . . . Drone Recoveries . | . . . Exploration | -11 -10 -9 ------------- Run | Scr Mat Mat Turns Passed 522 | 103 314 105 Spaces Moved 309 | 69 212 28 Core 17 | 15 . 2 Treads . | . . . Legs 269 | 54 212 3 Wheels 23 | . . 23 Hover . | . . . Flight . | . . . Fastest Speed 50 | 50 120 80 Average Speed 114 | 104 120 98 Slowest Speed 250 | 120 120 250 Overloaded Moves . | . . . Propulsion Burnouts . | . . . Robots Hopped . | . . . Cave-ins Triggered . | . . . Exploration Rate (%) 12 | 8 24 4 Regions Visited 2 Branch Regions . Pre-discovered Areas . | . . . Known Exits Taken . | . . . Unknown Exits Taken 2 | 1 1 . Scrap Searched . | . . . Spaces Dug . | . . . Terrain Destroyed . | . . . Melee . | . . . Projectile . | . . . AOE . | . . . Actions | -11 -10 -9 --------- Run | Scr Mat Mat Total 435 | 84 268 83 Wait 50 | . 37 13 Move 307 | 68 211 28 Hop . | . . . Pick Up 21 | 4 11 6 Fast Attach 11 | 6 . 5 Attach 10 | . 4 6 Detach 2 | . . 2 Swap 2 | . 1 1 Drop 10 | . 2 8 Fire 21 | 6 2 13 Melee . | . . . Ram 1 | . . 1 Kick . | . . . Crush . | . . . Escape Stasis . | . . . Rewire . | . . . Trap . | . . . Miscellaneous . | . . . Route ------- -11/Scrapyard -10/Materials -9/Materials History --------- Turn | Location | Event 2 | -11/Scrapyard | Met Revision 17 66 | -11/Scrapyard | Discovered new exit (range 8) 104 | -11/Scrapyard | Entered Materials 302 | -10/Materials | Build established: Mutant 308 | -10/Materials | Repaired Broken Aluminum Leg 367 | -10/Materials | Discovered new exit (range 3) 418 | -10/Materials | Entered another Materials area 418 | -9/Materials | Evolved 2 slots: Propulsion x1, Utility x1 506 | -9/Materials | Core integrity fell below 50% 520 | -9/Materials | Core integrity fell below 20% 523 | -9/Materials | Destroyed by Y-45 Defender with Heavy Assault Rifle Last Messages --------------- 00488_ Dropped Lgt. Ion Engine. 00488_ W-16 Scout sends out distress signal. 00488_ Acquired Lgt. Ion Engine. 00491_ EM Shotgun destroyed. 00493_ Slammed into S-10 Pest. 00494_ EM Shotgun destroyed. 00494_ Wheel destroyed. 00495_ K-01 Serf cleans the Electrolysis Chamber. 00497_ Wheel destroyed. 00498_ K-01 Serf cleans the Electrolysis Chamber. 00501_ S-10 Pest destroyed. 00501_ K-01 Serf cleans the Electrolysis Chamber. 00505_ Lgt. Ion Engine destroyed. 00507_ K-01 Serf collects debris. 00508_ EM Pulse Gun destroyed. 00508_ Med. Laser destroyed. 00511_ K-01 Serf collects debris. 00516_ Aluminum Leg destroyed. 00518_ Acquired EM Shotgun. 00520_ S-10 Pest destroyed. Map ----- +----------------------------------------------------+ | ??????????????????????????????????????????? | | ??????????????????????????????????????????? | | ??????????????????????????????????????????? | | ??????????????????????????????????????????? | | ??????????????????????????????????????????? | | ??????????????????????????????????????????? | | ??????????????????????????????????????????? | | ??????????????????? ??????????????????????? | | ??????????????????? ??????????????????????? | | ??????????????????? ??????????????????????? | | ?????????????????#? ??????????????????????? | | ??????????????????? ??????????????????????? | | ??????????? ??????? ??????????????????????? | | ???????????? ????? ??????????????????????? | | ????????? ?? ????# #?????????????????????? | | ???????????? !????+ +?? ??????????????????? | | ??????##???? !????# #?????????????????????? | | ???????????? !????# #?????????????????????? | | ?????????? ? ????# #??#??????????????????? | | ???????????? ????# #?????????????????????? | | ???????######/##??# #?????????????????????? | | ?#?????# #??#%#???? ????????????????? | | ???????# ####+#####?????????????????? | | ???????# # =u #?????????????????? | | ???????##### # %[ #????? ???????????? | | ?#?????????# #=Y@ ! #?????????????????? | | ???????????# #[%[ mY #?????????????????? | | ???????????# %+*Y[ u #?????????????????? | | ???????????# %#[! """ #???? ????????????? | | ???????????# #! """ #?????????????????? | | ????????#??# # w""" + ????????????????? | | ????#??????# # ###???????????????? | | ???????????# ###########????????????????? | | ????????? ?# #???? ?????????????????????? | | ???????????# #??????????????????????????? | | ????? ?????# #??????????????????????????? | | ???????????+ +??????? ??????????????????? | | ????? ?????# # ?????????????????????????? | | ?????????? # #??????????????????????????? | | ???????? ??# ???????????????????????????? | | ???????????# ???????????????????????????? | | ???????????# ???????????????????????????? | | ???????????# ???????????????????????????? | | ???????????? ???????????????????????????? | | ??????????????????????????????????????????? | | ??????????????????????????????????????????? | | ??????????????????????????????????????????? | | ??????????????????????????????????????????? | | ??????????????????????????????????????????? | | ??????????????????????????????????????????? | +----------------------------------------------------+ Best States ------------- Heat Dissipation 28 Energy Generation 10 Energy Capacity 125 Matter Stores 300 Matter Capacity 300 Sight Range 16 Terrain Scan Range 16 Terrain Scan Density 10 Evasion (%) 50 Item Schematics ----------------- None Robot Schematics ------------------ None Fabricated ------------ Nothing Alien Tech Used ----------------- None Achievements -------------- None Challenges ------------ None Game ------ Seed AnalysisWeightPerforator Manual? 0 Play Time 00:19:11 Cumulative 5.2 hours Start 2020.05.17 @ 12:25:28 End 2020.05.17 @ 12:45:47 Sessions 1 Manual Loads 0 Difficulty Rogue Special Mode None Game No. 3 Rogue 3 Adventurer 0 Explorer 0 Win Type - Total 0 Types 0/0/0/0/0/0/0 Lore% 11 Gallery% 7 Achievement% 8 Wizard Run 0 Options --------- ASCII 0 Keyboard 0 Movement Mouse Keybinds 0 Fullscreen 1 Font 18/SmallcapsGlow Map View 76x50 Tactical HUD 1 Map Filters NONE Filters NONE Steam 1 RUN: 99e3947d-a828-459c-899d-b31a58f2d11c